bitfinex-derivatives/quotes_BTCF0:USTF0_20230701
["timestamp","ask_amount","ask_price","bid_price","bid_amount"]
[1688236187971,0.82198666,30614.0,30613.0,0.84170403]
[1688236188363,0.80375697,30614.0,30613.0,0.86055348]
[1688236191077,0.80375697,30614.0,30613.0,0.87172575]
[1688236193577,0.80375697,30614.0,30613.0,0.87162934]
[1688236196463,0.80375697,30614.0,30613.0,0.86045707]
[1688236197178,0.80375697,30614.0,30613.0,0.87162934]
[1688236198072,0.80375697,30614.0,30613.0,0.86045707]
[1688236199574,0.80375697,30614.0,30613.0,0.87162934]
[1688236200073,0.80375697,30614.0,30613.0,0.86045707]
[1688236200775,0.80375697,30614.0,30613.0,0.87162934]
[1688236200971,0.80375697,30614.0,30613.0,0.86045707]
[1688236204185,0.82198666,30614.0,30613.0,0.84160762]
[1688236204489,0.82177287,30614.0,30613.0,0.49260762]
[1688236204787,0.84137187,30614.0,30613.0,0.49260762]
[1688236205986,0.85454039,30614.0,30613.0,0.49260762]
[1688236209675,0.85454039,30614.0,30613.0,0.51220762]
[1688236211291,0.92143887,30614.0,30613.0,0.51220762]
[1688236216190,0.92143887,30614.0,30613.0,0.26480762]
[1688236218401,0.92143887,30614.0,30613.0,0.26461752]
[1688236221811,0.90183987,30614.0,30613.0,0.26461752]
[1688236222211,0.83494139,30614.0,30613.0,0.26461752]
[1688236222714,0.8167117,30614.0,30613.0,0.27578979]
[1688236222909,0.8167117,30614.0,30613.0,0.29463924]
[1688236223914,0.8167117,30614.0,30613.0,0.28346697]
[1688236224114,0.8167117,30614.0,30613.0,0.53036697]
[1688236225302,0.8167117,30614.0,30613.0,0.89116697]
[1688236226411,0.8167117,30614.0,30613.0,0.53036697]
[1688236226616,0.8167117,30614.0,30613.0,0.89116697]
[1688236228915,0.8167117,30614.0,30613.0,0.90233924]
[1688236229712,0.8167117,30614.0,30613.0,0.89116697]
[1688236230107,0.8167117,30614.0,30613.0,0.90233924]
[1688236230820,0.8167117,30614.0,30613.0,0.89116697]
[1688236231020,0.8167117,30614.0,30613.0,0.90233924]
[1688236231520,0.8167117,30614.0,30613.0,0.89116697]
[1688236232012,0.8167117,30614.0,30613.0,0.53036697]
[1688236232213,0.8167117,30614.0,30613.0,0.8909831]
[1688236237212,0.8167117,30614.0,30613.0,0.90215537]
[1688236237413,0.8167117,30614.0,30613.0,0.8909831]
[1688236238522,0.8167117,30614.0,30613.0,0.90215537]
[1688236240218,0.8121617,30614.0,30613.0,0.90215537]
[1688236240523,0.8121617,30614.0,30613.0,0.8909831]
[1688236240826,0.8121617,30614.0,30613.0,0.90215537]
[1688236241629,0.79899318,30614.0,30613.0,0.90215537]
[1688236242233,0.79899318,30614.0,30613.0,0.8909831]
[1688236243029,0.46659318,30614.0,30613.0,0.90215537]
[1688236244221,0.39709318,30614.0,30613.0,0.90215537]
[1688236254127,0.02563687,30616.0,30614.0,0.03002172]
[1688236254327,0.00048996,30618.0,30615.0,0.512299]
[1688236254524,0.00048996,30618.0,30617.0,0.627197]
[1688236254729,0.02693729,30618.0,30617.0,0.65721872]
[1688236255030,0.48974474,30618.0,30617.0,0.65721872]
[1688236262727,0.49408691,30618.0,30617.0,0.65721872]
[1688236271243,0.49385134,30618.0,30617.0,0.65721872]
[1688236276246,0.49385134,30618.0,30617.0,0.29641872]
[1688236276543,0.49385134,30618.0,30617.0,0.65721872]
[1688236284446,0.49385134,30618.0,30617.0,0.65699349]
[1688236289564,0.49385134,30618.0,30617.0,0.29619349]
[1688236289759,0.49385134,30618.0,30617.0,0.65699349]
[1688236290161,0.49385134,30618.0,30617.0,0.29619349]
[1688236290363,0.49385134,30618.0,30617.0,0.65699349]
[1688236293752,0.49385134,30618.0,30617.0,0.64582122]
[1688236293953,0.49385134,30618.0,30617.0,0.65699349]
[1688236297064,0.49385134,30618.0,30617.0,0.65676009]
[1688236297964,0.49385134,30618.0,30617.0,0.29596009]
[1688236297965,0.81135134,30618.0,30617.0,0.29596009]
[1688236298158,0.81135134,30618.0,30617.0,0.64558782]
[1688236298359,0.81135134,30618.0,30617.0,0.65676009]
[1688236299473,0.81135134,30618.0,30617.0,0.29596009]
[1688236299672,0.81135134,30618.0,30617.0,0.65676009]
[1688236302070,0.81135134,30618.0,30617.0,0.29596009]
[1688236302276,0.81135134,30618.0,30617.0,0.62673837]
[1688236304368,0.81135134,30618.0,30617.0,0.63791064]
[1688236304677,0.81135134,30618.0,30617.0,0.62673837]
[1688236306375,0.81135134,30618.0,30617.0,0.93503837]
[1688236306973,0.81135134,30618.0,30617.0,0.94621064]
[1688236307282,0.81135134,30618.0,30617.0,0.93503837]
[1688236308783,0.81135134,30618.0,30617.0,0.57423837]
[1688236309079,0.81135134,30618.0,30617.0,0.57403104]
[1688236309285,0.81135134,30618.0,30617.0,0.93483104]
[1688236309780,0.81135134,30618.0,30617.0,0.94600331]
[1688236310277,0.81135134,30618.0,30617.0,0.93483104]
[1688236313087,0.81135134,30618.0,30617.0,0.94600331]
[1688236313381,0.81135134,30618.0,30617.0,0.96485276]
[1688236315285,0.81135134,30618.0,30617.0,0.95368049]
[1688236316087,0.81135134,30618.0,30617.0,0.93483104]
[1688236316585,0.81135134,30618.0,30617.0,0.94600331]
[1688236317185,0.81135134,30618.0,30617.0,0.93483104]
[1688236322881,0.81135134,30618.0,30617.0,0.93468649]
[1688236323293,0.81135134,30618.0,30617.0,0.94585876]
[1688236323593,0.81135134,30618.0,30617.0,0.93468649]
[1688236324498,0.81135134,30618.0,30617.0,0.57388649]
[1688236324689,0.81135134,30618.0,30617.0,0.93468649]
[1688236325193,0.81118349,30618.0,30617.0,0.95353594]
[1688236325391,0.81118349,30618.0,30617.0,0.96470821]
[1688236325590,0.81118349,30618.0,30617.0,0.60390821]
[1688236325892,0.81118349,30618.0,30617.0,0.96470821]
[1688236328392,0.81118349,30618.0,30617.0,0.60390821]
[1688236328592,0.81118349,30618.0,30617.0,0.95353594]
[1688236329595,0.81118349,30618.0,30617.0,0.93468649]
[1688236331093,0.81118349,30618.0,30617.0,0.57388649]
[1688236331291,0.81118349,30618.0,30617.0,0.93468649]
[1688236331696,0.81118349,30618.0,30617.0,0.57388649]
[1688236331893,0.81118349,30618.0,30617.0,0.93468649]
[1688236333092,0.81118349,30618.0,30617.0,0.95353594]
[1688236333902,0.81118349,30618.0,30617.0,0.59273594]
[1688236334094,0.81118349,30618.0,30617.0,0.95353594]
[1688236335000,0.81118349,30618.0,30617.0,0.96470821]
[1688236336503,0.81118349,30618.0,30617.0,0.60390821]
[1688236336706,0.81118349,30618.0,30617.0,0.96470821]
[1688236338003,0.81118349,30618.0,30617.0,0.95343407]
[1688236338305,0.81118349,30618.0,30617.0,0.96460634]
[1688236338505,0.81118349,30618.0,30617.0,0.95343407]
[1688236341397,0.81118349,30618.0,30617.0,0.93458462]
[1688236344813,0.81118349,30618.0,30617.0,0.95343407]
[1688236350411,0.82941318,30618.0,30617.0,0.95343407]
[1688236350610,0.82941318,30618.0,30617.0,0.93437574]
[1688236351311,0.81118349,30618.0,30617.0,0.93437574]
[1688236351618,0.82941318,30618.0,30617.0,0.93437574]
[1688236351918,0.82941318,30618.0,30617.0,0.57357574]
[1688236352223,0.81118349,30618.0,30617.0,0.57357574]
[1688236352716,0.82941318,30618.0,30617.0,0.57357574]
[1688236354120,0.81118349,30618.0,30617.0,0.57357574]
[1688236354916,0.81118349,30618.0,30617.0,0.59242519]
[1688236357821,0.82941318,30618.0,30617.0,0.57357574]
[1688236358118,0.81118349,30618.0,30617.0,0.57357574]
[1688236358302,0.81118349,30618.0,30617.0,0.59242519]
[1688236360408,0.82941318,30618.0,30617.0,0.59242519]
[1688236362920,0.82941318,30618.0,30617.0,0.57357574]
[1688236363719,0.82941318,30618.0,30617.0,0.57336629]
[1688236363924,0.81118349,30618.0,30617.0,0.58453856]
[1688236364217,0.81118349,30618.0,30617.0,0.59221574]
[1688236365807,0.81118349,30618.0,30617.0,0.57336629]
[1688236370128,0.82941318,30618.0,30617.0,0.57336629]
[1688236370425,0.81118349,30618.0,30617.0,0.57336629]
[1688236370820,0.49368349,30618.0,30617.0,0.60338801]
[1688236371823,0.49368349,30618.0,30617.0,0.59221574]
[1688236372128,0.49360759,30618.0,30617.0,0.59221574]
[1688236372327,0.51183728,30618.0,30617.0,0.59221574]
[1688236372623,0.49360759,30618.0,30617.0,0.59221574]
[1688236375330,0.49360759,30618.0,30617.0,0.60338801]
[1688236375628,0.49360759,30618.0,30617.0,0.59221574]
[1688236381428,0.49360759,30618.0,30617.0,0.60338801]
[1688236382031,0.49360759,30618.0,30617.0,0.59221574]
[1688236384721,0.49360759,30618.0,30617.0,0.59200753]
[1688236385533,0.49360759,30618.0,30617.0,0.57315808]
[1688236386836,0.49360759,30618.0,30617.0,0.6031798]
[1688236387230,0.49360759,30618.0,30617.0,0.59200753]
[1688236387735,0.49360759,30618.0,30617.0,0.6031798]
[1688236390038,0.49360759,30618.0,30617.0,0.59200753]
[1688236390534,0.49360759,30618.0,30617.0,0.57315808]
[1688236391536,0.49360759,30618.0,30617.0,0.6031798]
[1688236393239,0.49360759,30618.0,30617.0,0.59200753]
[1688236394938,0.49360759,30618.0,30617.0,0.57315808]
[1688236397032,0.49360759,30618.0,30617.0,0.6031798]
[1688236398341,0.49360759,30618.0,30617.0,0.60310351]
[1688236399341,0.49350364,30618.0,30617.0,0.60310351]
[1688236399932,0.49350364,30618.0,30617.0,0.57308179]
[1688236401039,0.49350364,30618.0,30617.0,0.58425406]
[1688236401241,0.49350364,30618.0,30617.0,0.57308179]
[1688236403843,0.49350364,30618.0,30617.0,0.59193124]
[1688236405544,0.49350364,30618.0,30617.0,0.57308179]
[1688236408146,0.49350364,30618.0,30617.0,0.59193124]
[1688236412252,0.49350364,30618.0,30617.0,0.59185807]
[1688236412641,0.49350364,30618.0,30617.0,0.60303034]
[1688236414559,0.49350364,30618.0,30617.0,0.59185807]
[1688236414751,0.49350364,30618.0,30617.0,0.60303034]
[1688236421760,0.49350364,30618.0,30617.0,0.29473034]
[1688236421953,0.49350364,30618.0,30617.0,0.54163034]
[1688236422355,0.49350364,30618.0,30617.0,0.84543034]
[1688236422860,0.49748969,30618.0,30617.0,0.84543034]
[1688236424056,0.0257333,30620.0,30617.0,0.84543034]
[1688236424363,0.00048992,30621.0,30619.0,0.264896]
[1688236424552,0.00048992,30621.0,30620.0,0.2474]
[1688236424753,0.00048992,30621.0,30620.0,0.579695]
[1688236424953,0.48893865,30621.0,30620.0,0.579695]
[1688236425155,0.48893865,30621.0,30620.0,0.60971672]
[1688236425564,0.51539846,30621.0,30620.0,0.60971672]
[1688236431762,0.52165234,30621.0,30620.0,0.60971672]
[1688236437781,0.52165234,30621.0,30620.0,0.59794445]
[1688236438069,0.52165234,30621.0,30620.0,0.59854445]
[1688236438459,0.52165234,30621.0,30620.0,0.60971672]
[1688236451376,0.52165234,30621.0,30620.0,0.60958627]
[1688236462078,0.52165234,30621.0,30620.0,0.57956455]
[1688236462875,0.52165234,30621.0,30620.0,0.59073682]
[1688236463082,0.52165234,30621.0,30620.0,0.60958627]
[1688236465984,0.52165234,30621.0,30620.0,0.60940808]
[1688236467291,0.52083436,30621.0,30620.0,0.60940808]
[1688236467587,0.52083436,30621.0,30620.0,0.60808808]
[1688236475796,0.52083436,30621.0,30620.0,0.59691581]
[1688236475981,0.52083436,30621.0,30620.0,0.60808808]
[1688236480897,0.52083436,30621.0,30620.0,0.96888808]
[1688236481787,0.52083436,30621.0,30620.0,0.96865562]
[1688236482097,0.52083436,30621.0,30620.0,0.59668335]
[1688236482297,0.52083436,30621.0,30620.0,0.95748335]
[1688236482688,0.52083436,30621.0,30620.0,0.96865562]
[1688236485687,0.52083436,30621.0,30620.0,0.60785562]
[1688236485889,0.52083436,30621.0,30620.0,0.96865562]
[1688236488795,0.52083436,30621.0,30620.0,0.9386339]
[1688236489390,0.52083436,30621.0,30620.0,0.95748335]
[1688236489391,0.85303436,30621.0,30620.0,0.95748335]
[1688236490401,0.85303436,30621.0,30620.0,0.96865562]
[1688236494893,0.85303436,30621.0,30620.0,0.96845972]
[1688236496003,0.85303436,30621.0,30620.0,0.60765972]
[1688236498001,0.85303436,30621.0,30620.0,0.59648745]
[1688236501297,0.85303436,30621.0,30620.0,0.60765972]
[1688236502111,0.85303436,30621.0,30620.0,0.59648745]
[1688236502992,0.85303436,30621.0,30620.0,0.60765972]
[1688236509515,0.85303436,30621.0,30620.0,0.60744192]
[1688236510416,0.85303436,30621.0,30620.0,0.63355907]
[1688236514008,0.85303436,30621.0,30620.0,0.6223868]
[1688236514511,0.85303436,30621.0,30620.0,0.63355907]
[1688236515016,0.85288869,30621.0,30620.0,0.63355907]
[1688236519825,0.52068869,30621.0,30620.0,0.88045907]
[1688236520014,0.52274372,30621.0,30620.0,0.88045907]
[1688236524138,0.00048987,30624.0,30620.0,0.88045907]
[1688236524342,0.00048987,30624.0,30623.0,0.2453]
[1688236524542,0.00048987,30624.0,30623.0,0.29491472]
[1688236524741,0.48820838,30624.0,30623.0,0.29491472]
[1688236525141,0.48820838,30624.0,30623.0,0.61871472]
[1688236525647,0.5141441,30624.0,30623.0,0.61871472]
[1688236528144,0.5141441,30624.0,30623.0,0.29491472]
[1688236531950,0.52223953,30624.0,30623.0,0.29491472]
[1688236533442,0.52223953,30624.0,30623.0,0.264893]
[1688236534252,0.52223953,30624.0,30623.0,0.28374245]
[1688236536634,0.52223953,30624.0,30623.0,0.28353493]
[1688236536839,0.54046922,30624.0,30623.0,0.28353493]
[1688236537341,0.52223953,30624.0,30623.0,0.28353493]
[1688236538436,0.83103953,30624.0,30623.0,0.28353493]
[1688236538939,0.84926922,30624.0,30623.0,0.28353493]
[1688236539652,0.83103953,30624.0,30623.0,0.28353493]
[1688236540240,0.83103953,30624.0,30623.0,0.26468548]
[1688236540648,0.86886222,30624.0,30623.0,0.1127901]
[1688236540853,0.86886222,30624.0,30623.0,0.2468]
[1688236544550,1.34728938,30624.0,30623.0,0.2468]
[1688236545839,0.98648938,30624.0,30623.0,0.2468]
[1688236546043,1.34728938,30624.0,30623.0,0.2468]
[1688236546439,1.22966222,30624.0,30623.0,0.2468]
[1688236547550,1.34728938,30624.0,30623.0,0.2468]
[1688236548054,0.98648938,30624.0,30623.0,0.2468]
[1688236548256,1.34728938,30624.0,30623.0,0.2468]
[1688236548855,1.22966222,30624.0,30623.0,0.2468]
[1688236549854,1.34728938,30624.0,30623.0,0.2468]
[1688236554260,1.34728938,30624.0,30623.0,0.24672202]
[1688236555162,1.44867746,30624.0,30623.0,0.24672202]
[1688236555657,1.08787746,30624.0,30623.0,0.24672202]
[1688236555858,1.34728938,30624.0,30623.0,0.24672202]
[1688236556258,1.44867746,30624.0,30623.0,0.24672202]
[1688236567562,1.44867746,30624.0,30623.0,0.2466589]
[1688236576980,1.08787746,30624.0,30623.0,0.2466589]
[1688236577276,1.34728938,30624.0,30623.0,0.2466589]
[1688236577775,1.44867746,30624.0,30623.0,0.2466589]
[1688236582684,1.44867746,30624.0,30623.0,0.24649348]
[1688236594282,1.34728938,30624.0,30623.0,0.24649348]
[1688236594484,1.22966222,30624.0,30623.0,0.24649348]
[1688236596288,1.22966222,30624.0,30623.0,0.24637326]
[1688236604393,1.44867746,30624.0,30623.0,0.24637326]
[1688236609304,1.44867746,30624.0,30623.0,0.24618395]
[1688236612607,1.08787746,30624.0,30623.0,0.24618395]
[1688236612899,1.34728938,30624.0,30623.0,0.24618395]
[1688236613105,1.22966222,30624.0,30623.0,0.24618395]
[1688236614008,1.34728938,30624.0,30623.0,0.24618395]
[1688236614306,1.44867746,30624.0,30623.0,0.24618395]
[1688236614508,1.34728938,30624.0,30623.0,0.24618395]
[1688236615108,1.22966222,30624.0,30623.0,0.24618395]
[1688236618909,0.86886222,30624.0,30623.0,0.24618395]
[1688236619115,1.22966222,30624.0,30623.0,0.24618395]
[1688236620716,0.86886222,30624.0,30623.0,0.24618395]
[1688236621014,1.22966222,30624.0,30623.0,0.24618395]
[1688236623219,1.22966222,30624.0,30623.0,0.24605168]
[1688236623716,0.03782369,30623.0,30622.0,0.019594]
[1688236623907,0.03782369,30623.0,30622.0,0.266394]
[1688236624107,0.53461875,30623.0,30622.0,0.266394]
[1688236624710,0.53461875,30623.0,30622.0,0.2468]
[1688236629128,0.89541875,30623.0,30622.0,0.2468]
[1688236629315,1.01304591,30623.0,30622.0,0.2468]
[1688236629514,1.11443399,30623.0,30622.0,0.2468]
[1688236631622,1.01304591,30623.0,30622.0,0.2468]
[1688236632723,0.89541875,30623.0,30622.0,0.2468]
[1688236633020,0.53461875,30623.0,30622.0,0.2468]
[1688236637229,0.53461875,30623.0,30622.0,0.24665916]
[1688236638828,0.53461875,30623.0,30622.0,0.26625316]
[1688236644724,0.51638906,30623.0,30622.0,0.26625316]
[1688236645935,0.49679506,30623.0,30622.0,0.28510261]
[1688236646428,0.49679506,30623.0,30622.0,0.29627488]
[1688236646829,0.51638806,30623.0,30622.0,0.29627488]
[1688236647028,0.51638806,30623.0,30622.0,0.28510261]
[1688236647430,0.51638806,30623.0,30622.0,0.26625316]
[1688236647837,0.53461775,30623.0,30622.0,0.26625316]
[1688236648037,0.51638806,30623.0,30622.0,0.26625316]
[1688236650933,0.53461775,30623.0,30622.0,0.26625316]
[1688236651239,0.51638806,30623.0,30622.0,0.26625316]
[1688236651740,0.53461775,30623.0,30622.0,0.24653647]
[1688236653336,0.51638806,30623.0,30622.0,0.24653647]
[1688236653526,0.53461775,30623.0,30622.0,0.24653647]
[1688236654429,0.51638806,30623.0,30622.0,0.24653647]
[1688236655232,0.53461775,30623.0,30622.0,0.24653647]
[1688236657340,0.51638806,30623.0,30622.0,0.24653647]
[1688236657939,0.51638806,30623.0,30622.0,0.26613047]
[1688236659336,0.51638806,30623.0,30622.0,0.28497992]
[1688236661140,0.53461775,30623.0,30622.0,0.26613047]
[1688236662547,0.51638806,30623.0,30622.0,0.26613047]
[1688236662938,0.53461775,30623.0,30622.0,0.26613047]
[1688236663851,0.53461775,30623.0,30622.0,0.26595585]
[1688236664948,0.51638806,30623.0,30622.0,0.26595585]
[1688236667448,0.53461775,30623.0,30622.0,0.26595585]
[1688236669148,0.53461775,30623.0,30622.0,0.24636185]
[1688236673254,0.51638806,30623.0,30622.0,0.24636185]
[1688236674260,0.53461775,30623.0,30622.0,0.24636185]
[1688236675558,0.51638806,30623.0,30622.0,0.24636185]
[1688236676253,0.53461775,30623.0,30622.0,0.24636185]
[1688236677147,0.51638806,30623.0,30622.0,0.24636185]
[1688236677347,0.51638806,30623.0,30622.0,0.26595585]
[1688236678564,0.51638806,30623.0,30622.0,0.26575405]
[1688236678858,0.53461775,30623.0,30622.0,0.26575405]
[1688236680662,0.53461775,30623.0,30622.0,0.24616005]
[1688236684065,0.53461775,30623.0,30622.0,0.26575405]
[1688236684967,0.51638806,30623.0,30622.0,0.26575405]
[1688236685369,0.51638806,30623.0,30622.0,0.2846035]
[1688236686259,0.53461775,30623.0,30622.0,0.2846035]
[1688236687764,0.53461775,30623.0,30622.0,0.26575405]
[1688236689173,0.51638806,30623.0,30622.0,0.26575405]
[1688236689480,0.53461775,30623.0,30622.0,0.26575405]
[1688236690163,0.51638806,30623.0,30622.0,0.26575405]
[1688236690677,0.53461775,30623.0,30622.0,0.26575405]
[1688236691579,0.51638806,30623.0,30622.0,0.26575405]
[1688236691779,0.53461775,30623.0,30622.0,0.26575405]
[1688236692580,0.53461775,30623.0,30622.0,0.26553395]
[1688236700890,0.51638806,30623.0,30622.0,0.2843834]
[1688236701590,0.51638806,30623.0,30622.0,0.29555567]
[1688236703084,0.51638806,30623.0,30622.0,0.2843834]
[1688236703285,0.51638806,30623.0,30622.0,0.29555567]
[1688236704191,0.51638806,30623.0,30622.0,0.54295567]
[1688236705890,0.51638806,30623.0,30622.0,0.54278117]
[1688236706788,0.49679506,30623.0,30622.0,0.54278117]
[1688236709183,0.49679506,30623.0,30622.0,0.90358117]
[1688236709990,0.49679506,30623.0,30622.0,0.54278117]
[1688236710189,0.49679506,30623.0,30622.0,0.90358117]
[1688236717795,0.49679506,30623.0,30622.0,0.54278117]
[1688236718001,0.49679506,30623.0,30622.0,0.90358117]
[1688236718594,0.49679506,30623.0,30622.0,0.54278117]
[1688236718798,0.49679506,30623.0,30622.0,0.90358117]
[1688236719204,0.49679506,30623.0,30622.0,0.929244]
[1688236720105,0.49679506,30623.0,30622.0,0.56836202]
[1688236720309,0.49679506,30623.0,30622.0,0.92916202]
[1688236725903,0.49679506,30623.0,30622.0,0.56836202]
[1688236726094,0.49679506,30623.0,30622.0,0.92916202]
[1688236727898,0.49679506,30623.0,30622.0,0.91798975]
[1688236728210,0.49679506,30623.0,30622.0,0.92916202]
[1688236733317,0.49679506,30623.0,30622.0,0.92902531]
[1688236734910,0.49679506,30623.0,30622.0,0.91785304]
[1688236735511,0.49679506,30623.0,30622.0,0.56822531]
[1688236735716,0.49679506,30623.0,30622.0,0.92902531]
[1688236738819,0.49679506,30623.0,30622.0,0.91785304]
[1688236739010,0.49679506,30623.0,30622.0,0.55705304]
[1688236739317,0.49679506,30623.0,30622.0,0.92902531]
[1688236740115,0.49679506,30623.0,30622.0,0.56822531]
[1688236740312,0.49679506,30623.0,30622.0,0.92902531]
[1688236743926,0.49679506,30623.0,30622.0,0.56822531]
[1688236744121,0.49679506,30623.0,30622.0,0.92902531]
[1688236744924,0.49679506,30623.0,30622.0,0.89900359]
[1688236745415,0.51502475,30623.0,30622.0,0.87334076]
[1688236745621,0.49679506,30623.0,30622.0,0.87334076]
[1688236748233,0.49679506,30623.0,30622.0,0.87326002]
[1688236754138,0.49679506,30623.0,30622.0,0.62586002]
[1688236757239,0.51502475,30623.0,30622.0,0.62586002]
[1688236757843,0.49679506,30623.0,30622.0,0.62586002]
[1688236760431,0.49679506,30623.0,30622.0,0.62568349]
[1688236761946,0.49679506,30623.0,30622.0,0.26488349]
[1688236762845,0.51502475,30623.0,30622.0,0.26488349]
[1688236763248,0.49679506,30623.0,30622.0,0.26488349]
[1688236765351,0.49679506,30623.0,30622.0,0.28373294]
[1688236767650,0.49679506,30623.0,30622.0,0.26488349]
[1688236770954,0.49657973,30623.0,30622.0,0.26488349]
[1688236774446,0.51480942,30623.0,30622.0,0.26488349]
[1688236775863,0.49657973,30623.0,30622.0,0.26488349]
[1688236778450,0.51480942,30623.0,30622.0,0.26488349]
[1688236778949,0.49657973,30623.0,30622.0,0.26488349]
[1688236783064,0.49657973,30623.0,30622.0,0.26479159]
[1688236784463,0.49657973,30623.0,30622.0,0.27596386]
[1688236784760,0.49657973,30623.0,30622.0,0.26479159]
[1688236786263,0.49657973,30623.0,30622.0,0.27596386]
[1688236786467,0.49657973,30623.0,30622.0,0.28364104]
[1688236786965,0.49657973,30623.0,30622.0,0.26479159]
[1688236789962,0.49657973,30623.0,30622.0,0.62559159]
[1688236791670,0.49657973,30623.0,30622.0,0.26479159]
[1688236791864,0.49657973,30623.0,30622.0,0.62559159]
[1688236792468,0.49657973,30623.0,30622.0,0.65561331]
[1688236792670,0.49657973,30623.0,30622.0,0.64444104]
[1688236794966,0.49657973,30623.0,30622.0,0.62559159]
[1688236795470,0.49657973,30623.0,30622.0,0.64444104]
[1688236795676,0.49657973,30623.0,30622.0,0.64435024]
[1688236796476,0.49657973,30623.0,30622.0,0.28355024]
[1688236796676,0.49657973,30623.0,30622.0,0.64435024]
[1688236796866,0.49657973,30623.0,30622.0,0.62550079]
[1688236797366,0.51617273,30623.0,30622.0,0.62550079]
[1688236800473,0.51617273,30623.0,30622.0,0.64435024]
[1688236801979,0.51617273,30623.0,30622.0,0.28355024]
[1688236802278,0.51617273,30623.0,30622.0,0.62550079]
[1688236802671,0.49657973,30623.0,30622.0,0.62550079]
[1688236804383,0.49657973,30623.0,30622.0,0.64435024]
[1688236804682,0.49657973,30623.0,30622.0,0.65552251]
[1688236805382,0.49163973,30623.0,30622.0,0.65552251]
[1688236805985,0.50392518,30623.0,30622.0,0.29472251]
[1688236806170,0.50392518,30623.0,30622.0,0.65552251]
[1688236807571,0.50392518,30623.0,30622.0,0.29472251]
[1688236807778,0.50392518,30623.0,30622.0,0.65552251]
[1688236807979,0.50392518,30623.0,30622.0,0.64435024]
[1688236808379,0.50392518,30623.0,30622.0,0.65552251]
[1688236808579,0.50392518,30623.0,30622.0,0.64435024]
[1688236811689,0.50392518,30623.0,30622.0,0.65552251]
[1688236812287,0.50392518,30623.0,30622.0,0.64435024]
[1688236813792,0.50392518,30623.0,30622.0,0.65552251]
[1688236814892,0.52215487,30623.0,30622.0,0.62550079]
[1688236815090,0.50392518,30623.0,30622.0,0.62550079]
[1688236815683,0.50392518,30623.0,30622.0,0.26470079]
[1688236815884,0.50392518,30623.0,30622.0,0.62550079]
[1688236816781,0.52351818,30623.0,30622.0,0.62550079]
[1688236816983,0.54174787,30623.0,30622.0,0.62550079]
[1688236817679,0.52351818,30623.0,30622.0,0.62550079]
[1688236818395,0.52351818,30623.0,30622.0,0.64435024]
[1688236819595,0.52351818,30623.0,30622.0,0.64427201]
[1688236819793,0.52351818,30623.0,30622.0,0.28347201]
[1688236819794,0.50392518,30623.0,30622.0,0.28347201]
[1688236819996,0.52215487,30623.0,30622.0,0.64427201]
[1688236820295,0.50392518,30623.0,30622.0,0.64427201]
[1688236820500,0.50392518,30623.0,30622.0,0.28347201]
[1688236820694,0.50392518,30623.0,30622.0,0.64427201]
[1688236820896,0.50392518,30623.0,30622.0,0.28347201]
[1688236821087,0.50392518,30623.0,30622.0,0.64427201]
[1688236825200,0.50392518,30623.0,30622.0,0.28347201]
[1688236825501,0.50392518,30623.0,30622.0,0.64427201]
[1688236826095,0.50392518,30623.0,30622.0,0.65544428]
[1688236826296,0.50392518,30623.0,30622.0,0.64427201]
[1688236826996,0.50392518,30623.0,30622.0,0.28347201]
[1688236827397,0.50392518,30623.0,30622.0,0.64427201]
[1688236827700,0.50392518,30623.0,30622.0,0.62542256]
[1688236828699,0.50392518,30623.0,30622.0,0.65544428]
[1688236829092,0.50392518,30623.0,30622.0,0.64427201]
[1688236829297,0.50392518,30623.0,30622.0,0.65544428]
[1688236829801,0.50392518,30623.0,30622.0,0.64427201]
[1688236831897,0.50392518,30623.0,30622.0,0.28336152]
[1688236832296,0.50392518,30623.0,30622.0,0.64416152]
[1688236832502,0.50392518,30623.0,30622.0,0.28336152]
[1688236832805,0.50392518,30623.0,30622.0,0.64416152]
[1688236837704,0.50392518,30623.0,30622.0,0.28336152]
[1688236838106,0.50392518,30623.0,30622.0,0.64416152]
[1688236840895,0.5037921,30623.0,30622.0,0.28336152]
[1688236841101,0.5037921,30623.0,30622.0,0.64416152]
[1688236841611,0.49182994,30623.0,30622.0,0.64416152]
[1688236846002,0.49182994,30623.0,30622.0,0.28336152]
[1688236846201,0.49182994,30623.0,30622.0,0.64416152]
[1688236847014,0.49182994,30623.0,30622.0,0.28336152]
[1688236847215,0.49182994,30623.0,30622.0,0.64416152]
[1688236848518,0.49182994,30623.0,30622.0,0.28336152]
[1688236848717,0.49182994,30623.0,30622.0,0.64416152]
[1688236848919,0.49182994,30623.0,30622.0,0.28336152]
[1688236849118,0.49182994,30623.0,30622.0,0.64416152]
[1688236849613,0.22618426,30623.0,30622.0,0.64416152]
[1688236849826,0.22618426,30623.0,30622.0,0.65533379]
[1688236855120,0.22618426,30623.0,30622.0,0.64416152]
[1688236855429,0.22618426,30623.0,30622.0,0.65533379]
[1688236856627,0.22618426,30623.0,30622.0,0.29453379]
[1688236856819,0.22618426,30623.0,30622.0,0.65533379]
[1688236858643,0.22618426,30623.0,30622.0,0.29453379]
[1688236858843,0.22618426,30623.0,30622.0,0.65533379]
[1688236860541,0.22618426,30623.0,30622.0,0.64416152]
[1688236860842,0.22618426,30623.0,30622.0,0.65533379]
[1688236862534,0.22618426,30623.0,30622.0,0.6551624]
[1688236862735,0.22618426,30623.0,30622.0,0.64399013]
[1688236863146,0.22618426,30623.0,30622.0,0.2943624]
[1688236863446,0.22618426,30623.0,30622.0,0.64399013]
[1688236864150,0.22618426,30623.0,30622.0,0.6551624]
[1688236865234,0.22618426,30623.0,30622.0,0.64399013]
[1688236865540,0.22618426,30623.0,30622.0,0.6551624]
[1688236865748,0.24577726,30623.0,30622.0,0.6551624]
[1688236868145,0.22618426,30623.0,30622.0,0.6551624]
[1688236869354,0.31064591,30623.0,30622.0,0.6551624]
[1688236876248,0.31064591,30623.0,30622.0,0.65498638]
[1688236878855,0.31048812,30623.0,30622.0,0.65498638]
[1688236884055,0.31048812,30623.0,30622.0,0.90188638]
[1688236893171,0.31048812,30623.0,30622.0,0.90172463]
[1688236902158,0.31048812,30623.0,30622.0,0.54092463]
[1688236902365,0.31048812,30623.0,30622.0,0.90172463]
[1688236911873,0.31048812,30623.0,30622.0,1.26252463]
[1688236912977,0.31048812,30623.0,30622.0,0.54092463]
[1688236913177,0.31048812,30623.0,30622.0,1.26252463]
[1688236918478,0.64088812,30623.0,30622.0,1.26252463]
[1688236919082,0.64088812,30623.0,30622.0,0.90172463]
[1688236919783,0.64088812,30623.0,30622.0,0.54092463]
[1688236920185,0.64088812,30623.0,30622.0,0.90172463]
[1688236920786,0.64088812,30623.0,30622.0,0.54092463]
[1688236920985,0.64088812,30623.0,30622.0,0.90172463]
[1688236926080,0.63197221,30623.0,30622.0,0.90172463]
[1688236926390,0.64098682,30623.0,30622.0,0.90172463]
[1688236927692,0.64098682,30623.0,30622.0,0.54092463]
[1688236927990,0.64098682,30623.0,30622.0,0.90172463]
[1688236930790,0.64098682,30623.0,30622.0,0.54092463]
[1688236930990,0.64098682,30623.0,30622.0,0.90172463]
[1688236932588,0.64098682,30623.0,30622.0,0.54092463]
[1688236932790,0.64098682,30623.0,30622.0,0.90172463]